bitfinex/quotes_ETHUSD_20260121
["timestamp","ask_amount","ask_price","bid_price","bid_amount"]
[1769034703558,0.002,3018.7,3018.2,1.75184517]
[1769034703758,0.002,3018.7,3018.3,1.75084517]
[1769034704486,0.002,3018.7,3018.4,2.29884517]
[1769034704660,0.002,3018.7,3018.5,1.75084517]
[1769034704979,6.322,3019.5,3018.5,1.75084517]
[1769034705181,0.002,3019.5,3018.7,1.75084517]
[1769034708490,0.002,3019.5,3018.8,0.548]
[1769034708951,1.68785403,3019.4,3018.6,0.548]
[1769034713291,0.002,3019.1,3018.6,0.548]
[1769034718075,0.002,3019.1,3018.7,1.75084517]
[1769034718682,0.002,3019.1,3018.8,1.75084517]
[1769034721621,0.002,3019.1,3018.6,0.548]
[1769034723224,0.002,3019.1,3018.6,5.46839629]
[1769034723525,0.002,3019.4,3018.7,3.31264525]
[1769034723696,0.002,3019.4,3018.8,2.15442984]
[1769034724731,0.002,3019.4,3018.9,1.60760483]
[1769034725293,0.002,3019.4,3018.8,0.54682501]
[1769034725294,6.41206892,3020.3,3019.2,1.60760483]
[1769034725508,6.32,3020.3,3019.2,1.60760483]
[1769034725855,6.32,3020.3,3019.4,1.60760483]
[1769034726001,6.96120689,3020.3,3019.4,1.60760483]
[1769034726798,0.09406892,3020.7,3019.5,1.60760483]
[1769034726799,0.002,3020.7,3019.5,1.60760483]
[1769034727110,0.002,3020.7,3019.4,4.22860635]
[1769034727111,0.002,3020.7,3019.7,1.60760483]
[1769034727316,0.002,3020.7,3019.8,1.60760483]
[1769034727836,0.002,3020.7,3020.0,1.60760483]
[1769034728915,0.002,3020.7,3020.1,1.60760483]
[1769034729119,0.002,3021.3,3020.3,1.60760483]
[1769034730014,0.002,3021.3,3020.4,1.60760483]
[1769034732335,0.002,3021.3,3020.5,1.60760483]
[1769034733744,0.002,3021.3,3020.7,1.60760483]
[1769034733912,0.002,3021.3,3020.4,4.91836246]
[1769034734117,0.002,3021.3,3020.4,0.547]
[1769034734118,1.6897448,3021.3,3020.4,0.547]
[1769034734312,0.002,3021.3,3020.4,5.46540092]
[1769034734959,0.002,3021.3,3020.5,1.60760483]
[1769034738257,0.002,3021.0,3020.5,1.60760483]
[1769034738434,0.002,3021.0,3020.5,2.15415453]
[1769034740377,0.002,3021.3,3020.7,1.60760483]
[1769034740736,0.002,3021.3,3020.6,1.60760483]
[1769034741870,0.002,3021.3,3020.7,1.60760483]
[1769034743233,0.002,3021.3,3020.8,3.31038135]
[1769034743433,0.002,3021.3,3020.9,0.33103814]
[1769034743660,0.002,3021.3,3020.9,1.93864297]
[1769034746542,0.002,3021.6,3021.0,1.60760483]
[1769034746749,0.002,3021.9,3021.3,1.60760483]
[1769034747059,0.002,3021.9,3021.4,0.547]
[1769034748393,0.002,3021.9,3021.4,2.37006531]
[1769034751466,0.002,3021.9,3021.4,0.76246048]
[1769034751667,0.09206892,3021.6,3021.0,0.001]
[1769034751881,0.09206892,3021.6,3021.1,0.547]
[1769034752390,1.729091,3021.8,3021.1,0.547]
[1769034752562,0.002,3021.9,3021.3,1.57949577]
[1769034752764,0.002,3021.9,3021.1,2.12649577]
[1769034752964,0.002,3021.9,3021.2,0.54375516]
[1769034754961,0.002,3021.9,3021.2,2.12325093]
[1769034757483,0.002,3021.9,3021.3,1.57949577]
[1769034758581,0.002,3021.9,3021.4,1.57949577]
[1769034760776,0.002,3022.2,3021.5,1.57949577]
[1769034761098,0.002,3022.2,3021.2,0.54375516]
[1769034761099,1.729091,3021.9,3021.2,1.09075516]
[1769034761302,0.09206892,3021.9,3021.2,0.547]
[1769034761768,0.09206892,3021.9,3021.5,0.001]
[1769034761969,0.002,3021.6,3021.5,0.001]
[1769034780295,0.002,3022.2,3021.5,1.56603209]
[1769034780495,0.09206892,3022.1,3021.5,1.56603209]
[1769034780709,0.09206892,3021.9,3021.5,1.56603209]
[1769034782013,0.09206892,3022.1,3021.5,1.56603209]
[1769034785126,0.09206892,3022.1,3021.8,0.001]
[1769034787397,0.002,3022.2,3021.8,0.001]
[1769034788809,0.002,3022.2,3021.8,1.61202307]
[1769034789010,0.002,3022.5,3021.9,1.61102307]
[1769034790031,0.002,3022.5,3022.0,0.49212894]
[1769034790213,0.002,3022.5,3021.9,1.61102307]
[1769034790821,0.002,3022.5,3022.0,1.61102307]
[1769034792418,0.002,3022.9,3022.3,1.61102307]
[1769034792600,0.002,3022.9,3022.4,0.547]
[1769034793322,0.002,3022.9,3022.4,2.15802307]
[1769034794830,0.002,3022.9,3022.5,0.21580231]
[1769034795130,0.002,3022.9,3022.4,0.547]
[1769034796513,1.56315241,3022.9,3022.0,1.61102307]
[1769034796711,0.09406892,3022.6,3021.8,2.15902307]
[1769034796915,0.09406892,3022.6,3021.8,2.70585563]
[1769034797115,0.09406892,3022.6,3021.8,1.09483256]
[1769034797431,0.09406892,3022.6,3021.9,1.61102307]
[1769034798129,0.09206892,3022.4,3021.8,0.548]
[1769034798638,0.09206892,3022.2,3021.8,0.001]
[1769034801340,0.09406892,3022.6,3021.8,1.54206104]
[1769034801541,0.59753577,3022.6,3021.8,1.54206104]
[1769034804925,0.002,3022.6,3021.8,1.54206104]
[1769034805243,0.09206892,3022.5,3021.8,1.54206104]
[1769034807541,0.002,3022.6,3021.9,1.54106104]
[1769034808319,0.002,3022.6,3022.1,1.54206104]
[1769034811137,0.002,3022.9,3022.2,1.65257569]
[1769034811755,0.002,3022.9,3022.3,0.4962512]
[1769034811950,0.002,3022.9,3022.3,2.14882689]
[1769034812126,0.002,3022.9,3022.3,0.4962512]
[1769034812450,0.002,3022.9,3022.4,1.65257569]
[1769034812656,0.002,3022.9,3022.2,1.65257569]
[1769034813466,0.002,3022.9,3022.3,0.547]
[1769034813762,0.002,3022.9,3022.3,0.76705757]
[1769034819628,0.002,3022.9,3022.6,0.001]
[1769034830442,1.51520333,3022.9,3022.3,0.547]
[1769034831170,0.002,3022.9,3022.3,0.547]
[1769034831540,0.002,3022.9,3022.6,0.001]
[1769034831760,0.49351872,3022.9,3022.6,0.001]
[1769034834268,1.60527225,3022.8,3022.1,0.001]
[1769034834568,0.09206892,3022.6,3022.1,0.001]
[1769034839070,1.60527225,3022.6,3022.1,0.001]
[1769034839241,0.09206892,3022.4,3022.1,0.001]
[1769034839438,0.26180304,3022.4,3022.1,0.001]
[1769034845384,0.09206892,3022.2,3022.1,0.001]
[1769034845559,3.40096504,3022.2,3021.4,1.51792999]
[1769034845874,0.09206892,3022.0,3021.4,1.51792999]
[1769034854902,0.45831902,3022.2,3021.4,1.51792999]
[1769034855592,0.002,3021.7,3021.4,1.51792999]
[1769034855962,0.002,3021.7,3021.5,1.51892616]
[1769034868704,0.002,3022.0,3021.6,1.51892616]
[1769034878908,0.002,3022.0,3021.4,4.80979179]
[1769034879322,0.002,3021.7,3021.4,4.80979179]
[1769034879818,0.002,3022.0,3021.4,4.80979179]
[1769034879999,0.002,3022.0,3021.4,6.09828533]
[1769034880417,0.002,3022.0,3021.4,4.59820181]
[1769034880621,0.002,3022.0,3021.5,1.50008352]
[1769034883023,0.002,3022.0,3021.4,1.28849354]
[1769034883326,0.002,3022.0,3021.4,2.78857706]
[1769034883628,0.002,3022.0,3021.5,1.08635723]
[1769034889354,0.002,3022.0,3021.4,1.50008352]
[1769034890614,1.6299482,3021.9,3021.5,0.547]
[1769034891194,0.09206892,3021.9,3021.5,0.547]
[1769034891395,0.002,3021.7,3021.5,0.547]
[1769034897201,0.002,3021.7,3021.0,0.001]
[1769034897202,1.53987928,3021.7,3021.0,0.001]
[1769034897409,1.53987928,3021.7,3021.1,0.547]
[1769034897708,2.033997,3021.7,3021.1,0.547]
[1769034899936,2.12606592,3021.7,3021.1,0.547]
[1769034900835,1.6319482,3021.7,3021.0,0.001]
[1769034901024,0.09206892,3021.5,3021.0,0.001]
[1769034903042,0.09206892,3021.5,3021.4,0.001]
[1769034911125,0.09406892,3021.7,3021.4,0.001]
[1769034915459,0.09206892,3021.5,3021.4,0.001]
[1769034915654,0.09206892,3021.5,3021.0,0.001]
[1769034915824,0.34956133,3021.5,3021.0,1.56488249]
[1769034916025,0.09406892,3021.7,3021.0,1.56488249]
[1769034926038,0.002,3021.7,3021.0,1.56488249]
[1769034926257,0.002,3021.7,3021.3,0.001]
[1769034926456,0.002,3021.4,3021.3,0.001]
[1769034939180,0.002,3022.0,3021.5,1.55193602]
[1769034939677,0.002,3022.0,3021.6,1.55193602]
[1769034947778,0.09206892,3022.5,3021.7,1.55193602]
[1769034948280,3.40060781,3022.5,3021.7,1.55193602]
[1769034948679,0.09206892,3022.5,3021.7,1.55193602]
[1769034949752,3.40060977,3022.5,3021.7,1.55193602]
[1769034950082,0.002,3022.2,3021.7,1.55193602]
[1769034962369,0.002,3022.2,3022.0,0.001]
[1769034973814,0.002,3022.2,3022.0,1.44899552]
[1769034978527,0.002,3022.2,3022.0,0.001]
[1769034982737,0.002,3022.2,3022.0,1.44899552]
[1769034983401,0.002,3022.5,3022.1,1.44799552]
[1769034983586,0.002,3022.5,3022.3,1.44799552]
[1769034985204,0.002,3022.6,3022.4,1.44799552]
[1769034996222,0.002,3022.6,3022.2,1.68467837]
[1769034997638,0.002,3022.3,3022.2,1.68467837]
[1769034997837,0.002,3022.6,3022.2,1.68467837]
[1769034998151,0.002,3022.6,3022.4,1.48507882]
[1769035007238,0.002,3022.6,3022.3,0.16846784]
[1769035011930,0.002,3022.9,3022.4,1.48507882]
[1769035012137,0.002,3022.9,3022.3,0.16846784]
[1769035012661,0.002,3022.9,3022.3,1.65354666]
[1769035012849,0.002,3022.9,3022.4,0.51618985]
[1769035015845,0.002,3022.9,3022.4,1.06318985]
[1769035019933,0.002,3022.9,3022.4,2.50252288]
[1769035020762,0.002,3022.9,3022.5,1.43933303]
[1769035021567,0.002,3022.9,3022.6,0.001]
[1769035023064,0.002,3022.9,3022.2,3.50835186]
[1769035023065,1.43239189,3022.9,3022.0,4.62280094]
[1769035023367,1.43239189,3022.9,3022.3,0.547]
[1769035025572,0.002,3022.9,3022.3,0.547]
[1769035027643,0.002,3022.9,3022.3,1.85979033]
[1769035027848,0.002,3022.9,3022.4,0.51686366]
[1769035028344,0.002,3023.0,3022.5,1.31279033]
[1769035029176,0.002,3023.0,3022.6,3.30840997]
[1769035029374,0.002,3023.0,3022.7,1.31279033]
[1769035029672,4.19e-06,3023.7,3022.7,1.31279033]
[1769035029872,4.19e-06,3023.7,3022.9,1.31279033]
[1769035031278,0.09206892,3023.6,3023.0,1.31279033]
[1769035032781,4.19e-06,3023.7,3023.0,1.31279033]
[1769035033464,0.09206892,3023.6,3023.0,1.31279033]
[1769035033654,0.09206892,3023.6,3023.1,0.4620823]
[1769035033977,0.002,3023.3,3023.1,0.4620823]
[1769035034362,1.43039189,3023.2,3022.7,0.547]
[1769035034953,0.002,3023.6,3023.0,1.31279033]
[1769035037782,0.002,3023.6,3023.0,4.62074168]
[1769035039658,0.002,3023.6,3023.1,1.31279033]
[1769035041292,0.002,3023.6,3023.2,0.46206943]
[1769035045455,0.002,3023.6,3023.1,1.31279033]
[1769035046695,0.002,3023.3,3023.1,1.31279033]
[1769035048085,0.002,3023.6,3023.1,1.31279033]
[1769035049500,0.002,3023.6,3023.2,1.31279033]
[1769035052020,0.002,3023.6,3023.2,1.29095789]
[1769035052183,0.002,3023.6,3023.3,0.45987803]
[1769035053514,0.002,3023.6,3023.0,4.59793121]
[1769035054012,0.002,3023.6,3023.2,1.29004074]
[1769035058407,0.002,3023.6,3023.3,1.29104074]
[1769035061244,0.002,3023.6,3023.3,0.001]
[1769035061418,0.002,3023.6,3023.3,0.4608856]
[1769035063307,1.37750056,3023.4,3022.6,0.001]
[1769035063637,1.37750056,3023.2,3022.6,0.001]
[1769035064488,1.37750056,3023.0,3022.4,0.547]
[1769035065130,1.37750056,3023.0,3022.1,0.75285467]
[1769035065337,1.37750056,3022.8,3022.1,0.547]
[1769035066287,1.37750056,3022.4,3021.3,0.001]
[1769035066591,0.09206892,3022.5,3021.3,0.001]
[1769035066592,1.46956948,3022.3,3021.3,0.001]
[1769035066815,1.46956948,3022.3,3021.4,0.547]
[1769035067335,0.09206892,3022.1,3021.3,1.29104074]
[1769035070322,0.09206892,3022.1,3021.6,0.001]
[1769035070494,0.57910762,3022.1,3021.6,0.001]
[1769035071095,1.46956948,3022.3,3021.6,0.001]
[1769035078443,0.09206892,3022.1,3021.6,0.001]
[1769035080320,1.49107825,3022.1,3021.6,0.001]
[1769035080652,1.49107825,3022.1,3021.3,0.001]
[1769035080653,0.09206892,3021.7,3021.3,0.001]
[1769035080950,0.09206892,3021.7,3021.0,0.001]
[1769035081150,0.09206892,3021.7,3021.0,1.31210086]
[1769035081648,0.09206892,3021.7,3021.0,0.001]
[1769035081849,1.37461678,3021.7,3021.0,0.001]
[1769035082824,0.09206892,3021.5,3021.0,0.001]
[1769035083041,0.56968747,3021.5,3021.0,0.001]
[1769035083356,0.47761855,3021.5,3021.0,0.001]
[1769035083529,1.28254786,3021.4,3020.4,1.31110086]
[1769035083846,1.89080249,3021.3,3020.4,1.31110086]
[1769035087354,0.60825463,3021.3,3020.4,1.31110086]
[1769035095170,0.60825463,3021.3,3020.4,4.62189159]
[1769035095380,0.51618571,3021.3,3020.5,1.31110086]
[1769035095557,0.51618571,3021.3,3020.4,3.31079073]
[1769035095558,0.002,3022.0,3020.8,1.31110086]
[1769035095866,0.002,3022.0,3020.9,1.31110086]
[1769035095867,0.09007311,3021.9,3020.9,1.31110086]
[1769035096037,0.002,3022.0,3021.3,0.02745086]
[1769035096471,0.002,3022.0,3021.3,1.33855172]
[1769035100167,0.09206892,3021.9,3021.3,0.02745086]
[1769035100373,0.09206892,3021.7,3021.3,0.02745086]
[1769035104072,0.09206892,3021.9,3021.3,0.02745086]
[1769035107977,0.002,3021.6,3021.3,0.02745086]
[1769035116794,0.002,3021.6,3021.2,1.34809095]
[1769035117291,0.002,3021.6,3020.9,3.31025645]
[1769035117495,0.002,3021.6,3021.0,2.01015431]
[1769035117700,0.002,3021.6,3021.1,1.34809095]
[1769035120273,0.002,3021.6,3021.3,0.001]
[1769035122573,0.002,3021.6,3020.7,3.31146743]
[1769035122574,0.09206892,3021.4,3020.7,0.001]
[1769035122773,1.45796787,3021.4,3020.7,0.001]
[1769035123895,0.09206892,3021.2,3020.7,0.001]
[1769035125004,1.45796787,3021.0,3020.2,0.547]
[1769035125575,1.45796787,3021.0,3020.1,1.34809095]
[1769035125783,1.36589895,3020.7,3019.6,1.34809095]
[1769035125989,1.45796787,3020.4,3019.4,0.547]
[1769035126402,0.09206892,3020.2,3019.4,1.89509095]
[1769035127105,1.45796787,3020.2,3019.2,1.34809095]
[1769035127288,1.45796787,3020.2,3019.3,0.547]
[1769035127808,0.09206892,3019.8,3018.6,1.34809095]
[1769035127994,0.09206892,3019.6,3018.7,0.547]
[1769035128174,1.45796787,3019.6,3018.7,0.52078339]
[1769035128375,1.45796787,3019.6,3018.6,3.31274294]
[1769035128376,1.45796787,3019.4,3018.6,3.3127903]
[1769035128708,1.36589895,3019.4,3018.5,1.89509095]
[1769035128910,0.09206892,3019.6,3018.7,1.34809095]
[1769035128911,1.45796787,3019.6,3018.7,1.34809095]
[1769035129098,0.09206892,3019.4,3018.7,1.34809095]
[1769035129302,0.09206892,3019.4,3018.5,0.547]
[1769035129303,0.09206892,3019.0,3018.5,0.547]
[1769035129499,0.09206892,3019.0,3018.4,1.34809095]
[1769035131817,0.09206892,3019.0,3018.2,3.86018573]
[1769035132018,0.09206892,3019.0,3018.2,4.71235552]
[1769035132785,1.45796787,3018.5,3017.3,1.34809095]
[1769035132978,1.45796787,3018.5,3017.2,4.2241677]
[1769035132979,1.36589895,3018.5,3017.7,3.86070874]
[1769035133206,1.36589895,3018.5,3017.7,5.20879969]
[1769035133997,1.36589895,3018.5,3017.7,3.31370874]
[1769035134202,0.09206892,3018.4,3017.6,1.34809095]
[1769035134397,1.45796787,3018.4,3017.6,1.34809095]
[1769035134596,0.09206892,3018.2,3017.6,1.34809095]
[1769035134801,0.09206892,3018.2,3017.4,4.66214587]
[1769035135101,0.09206892,3018.2,3017.4,5.5147905]
[1769035135296,1.45796787,3018.4,3017.4,0.85264463]
[1769035135498,1.45796787,3018.4,3017.6,3.3138706]
[1769035135808,1.45796787,3018.4,3017.6,4.66196155]
[1769035137519,1.45796787,3018.4,3017.6,1.34809095]
[1769035138017,1.45796787,3018.4,3017.6,4.66197244]
[1769035138499,1.45796787,3018.4,3017.6,1.34809095]
[1769035138704,0.09206892,3018.2,3017.6,1.34809095]
[1769035140292,0.09206892,3018.0,3017.3,0.547]
[1769035140488,1.4384047,3018.0,3017.3,0.547]
[1769035143397,0.09206892,3018.0,3017.3,0.547]
[1769035144500,0.09206892,3017.8,3017.3,0.547]
[1769035144703,0.09206892,3017.6,3017.3,0.547]
[1769035145093,0.09206892,3017.6,3016.9,0.003]
[1769035145297,0.09206892,3017.3,3016.9,0.003]
[1769035150320,0.09206892,3017.1,3016.9,0.003]
[1769035150911,0.09206892,3017.1,3014.5,1.28091933]
[1769035150912,0.09206892,3016.9,3014.5,1.28091933]
[1769035151108,0.46012525,3016.8,3015.3,1.28091933]
[1769035151315,5.79918355,3017.0,3015.6,1.28091933]
[1769035151734,0.33278275,3016.8,3015.6,1.23091933]
[1769035153342,0.33278275,3016.8,3015.7,1.28091933]
[1769035153555,0.37395124,3016.7,3015.7,1.28091933]
[1769035153906,0.34216956,3017.0,3015.8,1.28091933]
[1769035154236,3.65656107,3017.2,3015.8,1.28091933]
[1769035154440,0.34216956,3017.1,3015.8,1.28091933]
[1769035154605,0.36565611,3017.0,3015.9,1.28091933]
[1769035154809,0.34676852,3017.5,3015.9,1.28091933]
[1769035155005,0.34676852,3017.5,3016.1,1.28091933]
[1769035156043,0.34676852,3017.5,3016.3,1.28091933]
[1769035156247,0.36607184,3017.4,3016.3,1.5371032]
[1769035156652,0.36607184,3017.4,3016.4,0.001]
[1769035156863,0.36607184,3017.4,3016.5,1.28091933]
[1769035157017,0.002,3017.2,3016.5,1.28091933]
[1769035158015,0.002,3017.2,3016.6,1.28091933]
[1769035160518,0.002,3017.2,3016.7,1.28091933]
[1769035162752,0.002,3017.2,3016.8,1.28091933]
[1769035164264,0.38782252,3017.2,3016.4,0.001]
[1769035165123,0.37020478,3017.1,3016.4,0.001]
[1769035165524,0.76012081,3017.1,3016.4,0.001]
[1769035168726,0.38991603,3017.1,3016.4,0.001]
[1769035169926,0.002,3016.9,3016.4,0.001]
[1769035176134,0.43556206,3016.7,3015.8,1.32864041]
[1769035176345,0.52763098,3016.4,3015.3,1.32864041]
[1769035176556,3.31532009,3016.3,3015.3,1.32864041]
[1769035176861,0.09206892,3016.2,3015.3,1.32864041]
[1769035177245,0.53115521,3016.2,3015.3,1.32864041]
[1769035179338,0.4460179,3016.1,3015.3,1.32864041]
[1769035179538,0.38535379,3016.0,3015.3,1.32864041]
[1769035180078,0.09206892,3016.2,3015.3,1.32864041]
[1769035180440,3.40750517,3016.2,3015.3,1.32864041]
[1769035180767,0.09206892,3016.2,3015.3,1.32864041]
[1769035181563,3.85675308,3016.4,3015.3,1.32864041]
[1769035182745,3.85675308,3016.4,3015.6,0.001]
[1769035183054,0.09206892,3016.2,3015.6,0.001]
[1769035185988,3.40750928,3016.2,3015.6,0.001]
[1769035186164,0.09206892,3016.2,3015.6,0.001]
[1769035187660,3.4075179,3016.2,3015.6,0.001]
[1769035187866,3.88269047,3016.2,3015.6,0.001]
[1769035188053,0.45998763,3016.1,3015.6,0.001]
[1769035188452,0.09206892,3016.0,3015.6,0.001]
[1769035191181,0.48409405,3015.9,3014.9,1.32864041]
[1769035191386,0.09206892,3015.8,3014.9,1.32864041]
[1769035191598,0.57616297,3015.8,3014.9,1.32864041]
[1769035191799,0.57907043,3015.5,3014.7,1.32864041]
[1769035192004,0.57907043,3015.3,3014.4,1.32864041]
[1769035192572,0.09206892,3015.1,3014.4,1.32864041]
[1769035192979,0.49083804,3015.1,3014.4,1.32864041]
[1769035193178,3.80749642,3015.1,3014.4,1.32864041]
[1769035193508,3.4087273,3015.1,3014.4,1.32864041]
[1769035194502,0.09206892,3015.5,3014.4,1.32864041]
[1769035194705,0.09206892,3015.3,3014.4,1.32864041]
[1769035195121,0.09206892,3015.3,3014.7,0.001]
[1769035195414,0.34084239,3015.2,3014.7,0.001]
[1769035196107,0.34084239,3015.2,3014.0,3.31782271]
[1769035196108,0.09206892,3015.0,3014.0,1.32864041]
[1769035196609,1.43273564,3015.0,3014.0,1.32864041]
[1769035196802,4.7495154,3015.0,3014.0,1.32864041]
[1769035197114,0.47495154,3014.9,3014.0,1.32864041]
[1769035197979,0.47495154,3014.9,3014.1,1.32864041]
[1769035198214,0.09206892,3015.1,3014.1,1.32864041]
[1769035199314,0.09206892,3014.8,3014.1,1.32864041]
[1769035199486,0.09206892,3014.9,3014.1,1.32864041]
[1769035200280,1.453439,3014.9,3014.1,1.32864041]
[1769035200487,0.09206892,3014.7,3014.1,1.32864041]
[1769035201315,0.34084239,3015.2,3014.1,1.32864041]
[1769035201484,0.09206892,3015.0,3014.1,1.32864041]
[1769035201909,0.09206892,3014.8,3014.1,1.32864041]
[1769035202112,0.09206892,3014.6,3013.8,1.46983538]
[1769035202315,0.09206892,3014.8,3013.8,1.46983538]
[1769035202618,0.09206892,3014.6,3013.8,1.46983538]
[1769035203313,0.09206892,3014.6,3013.9,1.46983538]
[1769035203914,0.09206892,3014.8,3013.9,1.46983538]
[1769035204211,0.09206892,3015.5,3013.9,1.46983538]
[1769035204212,0.09206892,3014.9,3014.0,1.46983538]
[1769035204919,0.09206892,3015.3,3014.0,1.46983538]
[1769035204920,3.40849898,3015.3,3014.0,1.46983538]
[1769035205229,1.46438265,3016.0,3014.5,1.46983538]
[1769035205516,0.09206892,3015.9,3014.8,1.46983538]
[1769035205687,0.09206892,3016.3,3014.8,1.46983538]
[1769035205888,0.09206892,3016.1,3014.8,1.46983538]
[1769035206111,0.09206892,3016.1,3015.0,1.46983538]
[1769035206328,0.09206892,3016.3,3015.0,1.46983538]
[1769035206940,0.09206892,3016.5,3015.1,1.46983538]
[1769035207145,3.40717893,3016.5,3015.3,1.46983538]
[1769035207442,0.09206892,3016.5,3015.3,1.46983538]
[1769035207643,0.34070954,3016.4,3015.3,1.46983538]
[1769035208912,0.09406892,3016.9,3015.7,1.46983538]
[1769035209272,0.09406892,3016.9,3015.6,4.24052897]
[1769035209273,0.002,3016.9,3015.9,1.46983538]
[1769035209413,0.09206892,3016.8,3015.9,1.46983538]
[1769035209743,0.002,3016.9,3015.9,1.46983538]
[1769035211240,0.34285399,3016.9,3016.0,1.46983538]
[1769035212539,0.002,3016.9,3016.0,1.46983538]
[1769035213172,1.46638265,3016.9,3016.0,1.46983538]
[1769035213370,0.09206892,3016.2,3015.4,1.46983538]
[1769035213952,0.09206892,3016.0,3015.4,1.46983538]
[1769035215775,0.09206892,3016.2,3015.4,1.46983538]
[1769035215971,0.09206892,3016.4,3015.4,1.46983538]
[1769035216269,0.34991745,3016.4,3015.5,1.46983538]
[1769035216473,0.09206892,3016.6,3015.5,1.46983538]
[1769035216678,0.09206892,3016.4,3015.5,1.46983538]
[1769035217063,0.09206892,3016.6,3015.5,1.46983538]
[1769035217849,0.09206892,3016.6,3015.7,1.46983538]
[1769035219184,0.002,3016.1,3015.7,1.46983538]
[1769035219383,0.002,3016.4,3015.7,1.46983538]
[1769035219984,0.002,3016.4,3015.8,1.46983538]
[1769035224385,0.09206892,3016.3,3015.8,1.46983538]
[1769035224586,0.002,3016.4,3015.8,1.46983538]
[1769035224587,6.322,3016.9,3015.9,1.46983538]
[1769035224890,6.322,3016.9,3016.0,1.46983538]
[1769035224891,0.64340689,3016.9,3016.0,1.46983538]
[1769035225076,0.002,3016.9,3016.0,1.46983538]
[1769035226083,0.002,3016.9,3016.1,1.46983538]
[1769035229368,0.002,3016.9,3016.0,3.31561665]
[1769035229369,0.09206892,3016.8,3015.9,1.46983538]
[1769035229574,1.55645157,3016.8,3015.9,1.46983538]
[1769035231587,1.55645157,3016.8,3016.1,0.001]
[1769035231795,0.002,3016.5,3016.1,0.001]
[1769035239501,1.54889954,3016.5,3016.1,0.001]
[1769035239676,0.09206892,3016.4,3015.5,1.52659238]
[1769035239877,1.63896846,3016.4,3015.5,1.52659238]
[1769035240112,1.63896846,3016.2,3015.2,1.52659238]
[1769035240277,1.63896846,3016.0,3015.1,0.548]
[1769035240905,1.63896846,3016.0,3015.1,2.07459238]
[1769035241644,1.63896846,3016.0,3014.7,4.23590233]
[1769035241801,0.09206892,3015.8,3014.9,1.52659238]
[1769035243136,0.09206892,3015.6,3014.7,1.52659238]
[1769035243540,0.09206892,3015.6,3014.8,1.52659238]
[1769035246340,1.63896846,3015.6,3014.6,4.8437689]
[1769035246544,2.04239682,3015.5,3014.6,1.52659238]
[1769035246840,2.04239682,3015.5,3014.6,4.84377014]
[1769035247245,0.09206892,3015.4,3014.6,1.52659238]
[1769035247425,0.09206892,3015.4,3014.4,4.23590233]
[1769035247426,1.63896846,3015.4,3014.4,1.52659238]
[1769035247937,0.09206892,3015.4,3014.4,1.52659238]
[1769035248139,4.95528008,3015.4,3014.4,1.52659238]
[1769035248441,1.54689954,3015.3,3014.4,1.52659238]
[1769035248621,0.49552801,3015.2,3014.4,1.52659238]
[1769035249615,0.58759693,3015.2,3014.4,1.52659238]
[1769035250423,0.09206892,3015.0,3014.1,4.84429876]
[1769035250622,0.09206892,3015.0,3014.2,1.52659238]
[1769035251342,1.54689954,3014.9,3014.0,1.52659238]
[1769035251638,1.63896846,3014.8,3013.8,1.52659238]
[1769035251836,1.63896846,3014.8,3013.8,4.84465958]
[1769035252037,0.09206892,3014.6,3013.8,1.52659238]
[1769035254341,0.49552801,3015.2,3014.1,1.52659238]
[1769035254543,0.49552801,3015.2,3014.2,1.52659238]
[1769035255050,0.09206892,3015.5,3014.2,1.52659238]
[1769035255228,3.40810122,3015.7,3014.2,1.52659238]
[1769035255429,0.09206892,3015.7,3014.2,1.52659238]
[1769035255816,3.4080489,3015.7,3014.2,1.52659238]
[1769035256016,0.09206892,3015.5,3014.2,1.52659238]
[1769035256238,0.4420807,3015.5,3014.4,1.52659238]
[1769035256437,0.4420807,3015.5,3014.5,1.52659238]
[1769035257235,0.35001178,3015.5,3014.5,1.52659238]
[1769035257558,0.09206892,3015.5,3014.5,1.52659238]
[1769035260631,0.09206892,3015.5,3014.7,1.57362422]
[1769035261548,0.09206892,3015.3,3014.5,1.61723758]
[1769035261749,0.09206892,3015.3,3014.6,1.61723758]
[1769035261750,0.16925564,3015.2,3014.6,1.61723758]
[1769035262061,1.69255639,3015.1,3014.1,3.31870113]
[1769035262228,0.09206892,3015.1,3014.3,1.61723758]
[1769035262851,0.09206892,3014.9,3014.3,1.61723758]
[1769035264464,0.09206892,3015.1,3014.3,1.61723758]
[1769035264664,0.27053145,3015.1,3014.3,1.61723758]
[1769035265059,0.09206892,3015.1,3014.3,1.61723758]
[1769035265260,3.40829761,3015.5,3014.4,1.61723758]
[1769035265261,3.40830152,3015.5,3014.4,1.61723758]
[1769035265466,0.09206892,3015.5,3014.4,1.61723758]
[1769035267177,0.09206892,3015.5,3014.6,1.61723758]
[1769035267382,0.34081876,3015.4,3014.6,1.61723758]
[1769035271356,3.31524296,3016.4,3015.1,1.61723758]
[1769035271551,1.69255639,3016.3,3015.1,1.61723758]
[1769035271778,0.09206892,3016.4,3015.1,1.61723758]
[1769035272006,0.002,3016.5,3015.3,1.61723758]
[1769035272177,0.002,3016.5,3015.5,1.61723758]
[1769035272376,0.002,3016.5,3015.6,1.61723758]
[1769035274601,0.002,3016.5,3015.8,1.61723758]
[1769035274805,0.002,3016.5,3016.0,1.61723758]
[1769035275211,0.002,3016.9,3016.0,1.61723758]
[1769035277189,0.002,3016.9,3016.2,1.61723758]
[1769035278185,0.002,3016.9,3016.3,1.61723758]
[1769035278626,0.002,3016.9,3016.4,1.61723758]
[1769035279321,0.002,3016.9,3016.5,1.83376134]
[1769035279521,0.002,3016.9,3016.6,1.61723758]
[1769035280395,0.002,3017.2,3016.6,1.61723758]
[1769035281294,0.002,3017.2,3016.7,1.61723758]
[1769035282620,0.002,3017.2,3016.9,1.61723758]
[1769035282808,0.002,3017.2,3016.9,1.83376134]
[1769035285631,0.002,3017.2,3016.9,2.38176134]
[1769035287021,1.60248747,3017.2,3016.5,0.21652376]
[1769035287219,1.60248747,3017.2,3016.4,0.548]
[1769035287532,1.60248747,3017.2,3016.4,2.16523758]
[1769035287718,0.002,3017.2,3016.4,2.16523758]